bitfinex/quotes_ETHUSD_20241216
["timestamp","ask_amount","ask_price","bid_price","bid_amount"]
[1734380874590,0.103,4060.6,4059.7,0.7276463]
[1734380874793,0.103,4060.6,4059.8,8.7299964]
[1734380875105,0.103,4060.6,4059.9,0.7276463]
[1734380875275,0.103,4060.6,4060.0,0.4422749]
[1734380875711,0.103,4060.6,4060.0,0.81244166]
[1734380876421,0.103,4060.6,4059.8,8.7299964]
[1734380877162,2.7235794,4060.7,4059.8,8.7299964]
[1734380877163,0.28655616,4060.5,4059.8,8.7299964]
[1734380877397,0.103,4060.5,4059.8,8.7299964]
[1734380877609,0.103,4060.5,4059.9,0.37016676]
[1734380877826,0.103,4060.5,4059.9,0.39479579]
[1734380877974,0.103,4060.5,4059.9,0.37016676]
[1734380879069,0.103,4060.5,4059.8,8.7299964]
[1734380880237,0.103,4060.5,4059.5,8.7299964]
[1734380880507,0.103,4060.5,4059.6,0.87299964]
[1734380881292,0.29367341,4061.2,4059.7,0.8242]
[1734380881610,0.103,4061.0,4059.6,1.2431664]
[1734380881825,0.64240894,4060.9,4059.7,0.37016676]
[1734380881975,0.18354536,4060.8,4059.7,0.37016676]
[1734380882177,0.18355149,4060.9,4059.8,0.96004684]
[1734380882506,0.103,4061.0,4059.8,0.96004684]
[1734380882507,0.103,4061.0,4059.9,0.37016676]
[1734380882822,0.103,4061.0,4060.1,0.8242]
[1734380883022,0.1208513,4061.6,4060.2,11.82374256]
[1734380883170,0.103,4061.9,4060.3,0.02461981]
[1734380883377,0.18352868,4061.8,4060.6,2.7235794]
[1734380883600,0.103,4061.9,4060.7,0.75226482]
[1734380884015,0.103,4062.6,4060.8,0.8242]
[1734380884213,0.64207312,4062.5,4060.9,1.89667803]
[1734380884418,0.103,4062.6,4061.0,0.67748492]
[1734380884631,0.103,4062.6,4061.1,0.37016676]
[1734380884632,0.64169228,4062.5,4061.1,0.37016676]
[1734380884916,0.18334063,4062.4,4061.1,0.37016676]
[1734380885116,0.103,4062.0,4060.5,9.75934902]
[1734380885333,0.103,4062.0,4060.7,0.37016676]
[1734380887053,0.103,4062.0,4060.7,0.75226713]
[1734380887193,0.103,4062.0,4061.0,3.0]
[1734380887396,0.103,4062.0,4061.1,0.37016676]
[1734380888048,0.12110956,4062.1,4061.1,0.37016676]
[1734380888245,0.12110956,4062.1,4061.2,0.67175727]
[1734380888450,0.12110956,4062.1,4061.2,1.04192403]
[1734380888745,0.12110956,4062.1,4061.3,0.37016676]
[1734380889059,0.12110956,4062.1,4061.2,0.67175727]
[1734380889060,0.103,4062.0,4061.2,0.67175727]
[1734380889209,0.103,4062.0,4061.0,3.37016676]
[1734380889397,0.103,4062.0,4061.1,0.37016676]
[1734380892136,0.103,4062.0,4061.1,9.10016316]
[1734380892322,0.12110956,4062.1,4061.2,0.7847]
[1734380892502,0.12110956,4062.1,4061.3,1.65865308]
[1734380893710,0.12110956,4062.1,4061.3,2.01613262]
[1734380894761,0.103,4062.6,4061.4,3.38209731]
[1734380895048,0.103,4063.8,4062.1,8.7299964]
[1734380895258,0.41228844,4063.7,4062.3,3.34740595]
[1734380895468,0.103,4063.8,4062.4,1.27220646]
[1734380895829,0.12468018,4063.4,4062.4,1.27220646]
[1734380898284,0.103,4063.8,4062.6,8.7299964]
[1734380898449,0.103,4063.8,4062.7,0.7276463]
[1734380899036,0.12381998,4063.5,4062.7,0.7276463]
[1734380899243,0.103,4063.4,4062.8,0.94576427]
[1734380899686,0.103,4063.4,4061.9,8.7299964]
[1734380899882,0.12381998,4063.5,4061.9,8.7299964]
[1734380899883,0.103,4063.3,4061.9,8.7299964]
[1734380900693,0.103,4063.3,4061.9,9.10016316]
[1734380900896,0.103,4063.1,4061.9,9.4576427]
[1734380901095,0.103,4063.1,4061.9,8.7299964]
[1734380901294,0.18292631,4063.0,4061.9,8.7299964]
[1734380901558,0.18292631,4063.0,4061.5,8.7299964]
[1734380901559,0.103,4062.9,4061.5,8.7299964]
[1734380901795,0.103,4062.9,4061.9,0.37016676]
[1734380902098,0.103,4062.9,4061.6,1.24475691]
[1734380902397,0.103,4062.9,4061.6,1.61492367]
[1734380902999,0.103,4062.8,4061.1,8.7299964]
[1734380903156,2.4613,4062.9,4061.1,8.7299964]
[1734380903157,0.18297384,4062.7,4061.1,8.7299964]
[1734380903357,0.28597384,4062.6,4061.2,0.7276463]
[1734380903604,0.103,4062.6,4061.2,0.7276463]
[1734380904093,0.103,4062.6,4061.2,0.75226402]
[1734380904297,0.103,4062.6,4061.3,0.94822604]
[1734380904466,0.103,4062.6,4061.4,0.7276463]
[1734380904668,0.103,4062.6,4061.5,0.02461579]
[1734380904887,0.103,4062.6,4061.6,0.7276463]
[1734380905086,0.103,4063.4,4061.6,0.7276463]
[1734380905300,0.18305257,4063.3,4061.7,0.48258906]
[1734380905522,0.18305257,4063.3,4061.8,0.35747954]
[1734380905718,0.12137228,4062.8,4061.8,0.7276463]
[1734380905929,0.103,4062.7,4061.8,0.7276463]
[1734380906736,0.103,4062.6,4061.0,0.8275]
[1734380907014,0.18312391,4062.5,4060.7,1.19766676]
[1734380907320,0.18320054,4062.4,4060.7,1.19766676]
[1734380907625,0.29312087,4062.7,4060.7,1.19766676]
[1734380907626,0.103,4062.3,4060.7,1.19766676]
[1734380907780,0.103,4062.3,4061.1,9.10016316]
[1734380907976,0.103,4062.3,4061.2,0.7276463]
[1734380908201,0.103,4062.3,4061.3,0.02461788]
[1734380908401,0.103,4062.3,4061.4,2.75663412]
[1734380909993,0.10147364,4062.3,4061.4,11.48663052]
[1734380910194,0.10147364,4062.3,4061.4,10.67773052]
[1734380910401,0.10147364,4062.3,4061.4,10.32025098]
[1734380911422,0.10147364,4062.3,4061.4,10.67773052]
[1734380911624,0.10147364,4062.3,4061.5,0.99505363]
[1734380911918,0.10147364,4062.3,4061.6,0.37016676]
[1734380912475,0.12137228,4062.8,4061.6,0.37016676]
[1734380912680,0.29389106,4063.4,4061.7,13.26859414]
[1734380912920,0.1015,4063.2,4061.8,9.10016316]
[1734380913091,0.1015,4063.2,4062.0,8.7299964]
[1734380913898,0.18366137,4063.1,4062.0,8.7299964]
[1734380914219,0.18366137,4063.0,4062.0,8.7299964]
[1734380914424,0.1015,4063.2,4062.0,8.7299964]
[1734380914579,0.18366426,4063.1,4062.1,0.61295866]
[1734380914786,0.18366426,4063.0,4062.1,0.61295866]
[1734380914981,0.1015,4063.2,4062.1,0.61295866]
[1734380915194,0.18366456,4063.1,4062.1,0.61295866]
[1734380915413,0.18366456,4063.0,4062.2,0.97004346]
[1734380915677,0.1836738,4062.9,4062.0,8.7299964]
[1734380915882,0.1015,4063.1,4062.0,8.7299964]
[1734380916133,0.41326709,4063.0,4062.0,0.37016676]
[1734380916291,0.1015,4063.1,4062.1,0.37016676]
[1734380916627,0.18367177,4063.0,4062.1,0.37016676]
[1734380916831,0.29387809,4063.4,4062.4,3.0]
[1734380917129,0.1015,4063.5,4062.5,1.30225298]
[1734380918135,0.1015,4063.5,4062.5,0.7276463]
[1734380918498,0.1015,4063.5,4062.3,8.7299964]
[1734380918832,0.1015,4063.3,4062.3,8.7299964]
[1734380918999,0.1015,4063.3,4062.3,10.04592743]
[1734380919726,0.1015,4063.3,4061.7,4.37625671]
[1734380919727,0.41316875,4063.2,4062.0,8.7299964]
[1734380920023,0.1015,4063.0,4061.2,8.7299964]
[1734380920235,0.1015,4062.8,4061.2,8.7299964]
[1734380920399,3.34690409,4063.5,4061.3,0.99191632]
[1734380920400,0.1015,4062.6,4061.3,0.99191632]
[1734380920597,0.1015,4062.4,4061.3,0.99191632]
[1734380920797,0.1015,4062.4,4061.3,9.72191272]
[1734380921534,2.75517809,4062.9,4061.3,9.72191272]
[1734380921535,0.64295277,4062.3,4061.3,9.72191272]
[1734380921743,0.1015,4062.2,4061.3,9.72191272]
[1734380921903,0.5148374,4062.2,4061.3,9.72191272]
[1734380922220,0.33113189,4062.2,4061.3,9.72191272]
[1734380922430,0.33113189,4062.2,4061.3,8.7299964]
[1734380922633,0.1015,4062.0,4061.3,8.7299964]
[1734380922787,0.1015,4061.8,4060.5,8.7299964]
[1734380922987,0.1015,4061.6,4060.5,8.7299964]
[1734380923837,0.18368832,4061.5,4060.5,8.7299964]
[1734380924035,0.28518832,4061.4,4060.2,8.7299964]
[1734380924339,0.1015,4061.4,4060.2,9.9731628]
[1734380924550,0.1015,4061.4,4060.3,0.37016676]
[1734380925409,0.1015,4061.4,4060.4,0.33497954]
[1734380925614,0.1015,4061.4,4060.2,9.60299604]
[1734380926711,0.1015,4061.4,4060.2,8.7299964]
[1734380928046,0.1015,4061.4,4060.0,8.7299964]
[1734380928633,0.1015,4061.3,4060.0,8.7299964]
[1734380931351,0.1015,4061.0,4059.8,9.75934902]
[1734380931518,5.80885409,4061.9,4059.5,0.7924]
[1734380931519,0.1015,4060.7,4059.5,9.75934902]
[1734380931718,0.1015,4060.5,4059.3,1.02935262]
[1734380931921,0.1015,4060.5,4059.2,8.7299964]
[1734380932950,0.1015,4060.3,4059.2,8.7299964]
[1734380937151,0.1015,4060.3,4058.9,8.7299964]
[1734380937338,0.1015,4060.3,4059.0,1.36005308]
[1734380939057,0.1015,4060.3,4058.9,8.7299964]
[1734380940113,0.1015,4060.3,4059.0,8.7299964]
[1734380941013,0.1015,4060.3,4058.7,8.7299964]
[1734380941218,0.1015,4060.2,4058.7,8.7299964]
[1734380943571,0.1015,4060.0,4058.7,8.7299964]
[1734380943755,0.1015,4059.8,4058.7,8.7299964]
[1734380946141,0.1015,4059.8,4058.3,11.45229227]
[1734380946342,0.1015,4059.8,4058.3,11.82245903]
[1734380946575,0.1015,4059.8,4058.4,0.37016676]
[1734380949463,0.1015,4059.8,4058.3,8.7299964]
[1734380949674,0.1015,4059.7,4058.3,8.7299964]
[1734380950280,0.1015,4059.5,4057.7,9.10016316]
[1734380950651,0.1015,4059.3,4057.6,8.7299964]
[1734380951898,0.1833884,4059.2,4057.6,8.7299964]
[1734380952069,0.1015,4059.1,4057.6,8.7299964]
[1734380952287,0.1015,4058.9,4057.6,8.7299964]
[1734380953112,0.1015,4058.5,4056.7,0.777]
[1734380953314,0.1015,4058.5,4056.8,8.7299964]
[1734380953660,0.1015,4058.3,4056.8,8.7299964]
[1734380954004,5.18622587,4058.6,4056.8,8.7299964]
[1734380954005,0.1015,4058.1,4056.8,8.7299964]
[1734380954959,0.1015,4058.1,4056.9,0.37016676]
[1734380955164,0.1015,4058.1,4057.0,0.8032]
[1734380955395,0.1015,4058.1,4057.0,1.17336676]
[1734380955857,0.1015,4058.1,4057.1,0.37016676]
[1734380956092,0.1015,4058.1,4057.1,1.66623062]
[1734380959515,0.1015,4058.1,4057.1,0.37016676]
[1734380959976,0.1015,4058.0,4057.0,8.7299964]
[1734380960380,0.1015,4057.7,4057.0,8.7299964]
[1734380960819,0.1015,4057.7,4056.3,8.7299964]
[1734380961028,0.1015,4057.7,4056.2,0.37016676]
[1734380961029,0.1015,4057.5,4056.2,9.10016316]
[1734380961182,0.18345795,4057.4,4056.2,8.7299964]
[1734380961387,0.1015,4057.3,4056.2,8.7299964]
[1734380961828,0.1015,4057.3,4056.2,9.10016316]
[1734380962491,0.1015,4057.3,4056.2,8.7299964]
[1734380963434,0.1015,4057.3,4054.6,1.29941814]
[1734380963435,0.1015,4056.8,4055.0,0.7835]
[1734380963640,0.28237959,4056.7,4055.1,1.25707718]
[1734380963925,0.1015,4056.6,4055.1,1.62724394]
[1734380964488,0.1015,4056.6,4055.2,0.37016676]
[1734380966610,0.1015,4056.6,4055.3,3.90963151]
[1734380966852,0.1015,4056.6,4055.5,0.7745]
[1734380967060,0.1015,4056.6,4055.6,0.7051463]
[1734380967231,0.1015,4056.6,4055.7,8.7299964]
[1734380967437,0.1015,4056.6,4055.8,0.37016676]
[1734380970154,0.1015,4056.6,4055.8,9.10016316]
[1734380970362,0.1015,4056.6,4055.8,10.12112743]
[1734380971656,3.220188,4059.0,4056.1,3.0]
[1734380971657,2.72229587,4058.2,4056.1,3.0]
[1734380971818,0.1015,4058.0,4056.2,0.72979113]
[1734380972016,0.18300629,4057.9,4056.2,0.72979113]
[1734380972350,0.18300629,4057.8,4056.3,0.8096361]
[1734380972562,0.28454501,4057.7,4056.3,1.17980286]
[1734380972855,0.1015,4057.7,4056.4,0.37016676]
[1734380973015,0.1015,4057.7,4056.5,0.15394272]
[1734380973252,0.1015,4057.7,4056.5,0.52410948]
[1734380973452,0.1015,4057.7,4056.6,0.37016676]
[1734380973849,0.1015,4057.7,4056.6,0.7051463]
[1734380974349,0.1015,4057.7,4056.6,0.37016676]
[1734380976298,0.1015,4057.7,4056.6,9.10016316]
[1734380978400,0.12191399,4057.5,4056.8,2.72229587]
[1734380978563,0.1015,4058.0,4057.2,2.72229587]
[1734380978899,0.1015,4058.3,4057.6,2.72229587]
[1734380979099,0.1015,4058.3,4057.4,0.8258]
[1734380979100,0.1015,4058.3,4057.4,9.5557964]
[1734380979400,0.1015,4058.3,4057.5,1.17980286]
[1734380979559,0.1015,4058.3,4057.5,1.5147824]
[1734380981295,0.1015,4058.3,4057.6,0.02463936]
[1734380981495,0.1015,4058.3,4057.7,0.37016676]
[1734380982300,0.1015,4058.3,4057.7,9.10016316]
[1734380982483,0.1015,4058.3,4057.7,10.12112743]
[1734380982900,0.1015,4058.3,4057.7,10.45610697]
[1734380983101,0.39544352,4059.4,4057.9,8.7299964]
[1734380983384,0.93694781,4059.3,4058.0,0.7051463]
[1734380983698,0.64300429,4059.2,4058.0,0.7051463]
[1734380983896,0.28521551,4059.1,4058.0,0.7051463]
[1734380984109,0.18371551,4059.0,4058.0,0.7051463]
[1734380984285,0.1015,4059.1,4058.0,0.7051463]
[1734380984487,0.18366903,4059.0,4058.0,0.7051463]
[1734380984686,0.1015,4059.1,4058.0,1.5147824]
[1734380985285,0.18361019,4059.0,4058.0,1.5147824]
[1734380985485,0.1015,4059.1,4058.0,1.5147824]
[1734380985694,0.18360381,4059.0,4058.0,1.5147824]
[1734380985896,0.1015,4059.1,4058.0,1.5147824]
[1734380986227,0.18360263,4059.0,4058.0,1.5147824]
[1734380986435,0.1015,4058.9,4057.5,8.7299964]
[1734380986588,0.1015,4058.7,4057.5,8.7299964]
[1734380986899,0.41305718,4058.8,4056.7,1.19216676]
[1734380986900,0.1015,4058.5,4056.8,8.7299964]
[1734380987083,0.29394352,4058.8,4056.9,1.63461266]
[1734380987084,0.18358062,4058.4,4056.9,1.63461266]
[1734380987289,0.29394352,4058.8,4056.9,1.63461266]
[1734380987290,0.1015,4058.2,4056.9,1.63461266]
[1734380987492,0.1015,4058.2,4056.9,1.9695922]
[1734380987721,0.1015,4058.2,4056.9,4.9695922]
[1734380987884,0.1015,4058.2,4057.0,0.56615447]
[1734380988088,0.1015,4058.2,4057.1,0.37016676]
[1734380988329,0.1015,4058.2,4057.2,0.33497954]
[1734380988534,0.1015,4058.2,4057.3,0.37016676]
[1734380988895,0.1015,4058.2,4057.4,1.13932067]
[1734380989095,0.1015,4058.2,4057.5,0.5211155]
[1734380989291,0.1015,4058.2,4057.6,0.33497954]
[1734380989530,0.1015,4058.2,4057.7,0.37016676]
[1734380991235,0.1015,4058.2,4057.1,9.10016316]
[1734380991405,0.1015,4058.2,4057.6,0.37016676]
[1734380993210,0.1015,4058.2,4057.2,0.37016676]
[1734380993708,0.1015,4058.2,4057.2,0.7051463]
[1734380994503,0.1015,4058.2,4057.3,1.17551386]
[1734380994719,0.1015,4058.2,4057.4,0.37016676]
[1734380995751,0.1015,4058.2,4057.5,1.17529557]
[1734380995965,0.1015,4058.2,4057.4,0.37016676]
[1734380996174,0.1015,4058.2,4057.1,9.75934902]
[1734380996619,0.1015,4058.2,4057.2,1.17545245]
[1734380996929,0.1015,4058.2,4057.3,1.17545245]
[1734380997117,0.1015,4058.2,4057.2,8.7299964]
[1734380997317,0.1015,4058.2,4057.3,1.17548996]
[1734380997535,0.1015,4058.2,4057.2,9.75934902]
[1734380997745,0.1015,4058.2,4057.3,1.17566311]
[1734380997946,0.1015,4058.2,4057.2,8.7299964]
[1734380999121,0.28537903,4058.1,4057.2,8.7299964]
[1734380999319,0.74511341,4058.0,4057.2,8.7299964]
[1734380999535,0.1015,4057.8,4057.2,8.7299964]
[1734381000259,0.1015,4057.8,4056.6,1.02935262]
[1734381000566,0.29435924,4058.3,4056.7,1.88165364]
[1734381000724,0.45992927,4058.2,4056.8,1.17643879]
[1734381000920,0.64390357,4058.1,4056.8,0.7051463]
[1734381001231,0.18397326,4058.0,4056.9,1.54653406]
[1734381001445,0.12407502,4058.7,4056.6,1.16735447]
[1734381001446,2.72229587,4057.7,4056.6,1.02935262]
[1734381001632,3.39917463,4057.6,4056.1,1.02935262]
[1734381001968,0.64403772,4057.5,4055.9,9.75934902]
[1734381002260,0.64403772,4057.4,4056.0,1.17706872]
[1734381002418,0.98395518,4057.3,4055.9,8.7299964]
[1734381002619,0.64403772,4057.2,4055.8,1.02935262]
[1734381002815,3.06221333,4057.3,4055.6,1.02935262]
[1734381002816,0.64403772,4057.1,4055.6,1.02935262]
[1734381003057,1.26113182,4057.0,4055.7,1.17698186]
[1734381003245,0.6170941,4057.0,4055.6,1.13033779]
[1734381003419,3.06221333,4057.3,4055.7,1.17683591]
[1734381003619,0.6434365,4057.2,4055.6,1.13033779]
[1734381003821,0.6434365,4057.1,4055.7,1.17678619]
[1734381004025,3.06221333,4057.3,4055.6,1.13033779]
[1734381004262,0.64338707,4057.0,4055.7,1.17666942]
[1734381004458,0.18382369,4056.9,4055.6,1.13033779]
[1734381004617,0.18382369,4056.8,4055.6,1.13033779]
[1734381004824,0.55268433,4057.2,4055.6,1.13033779]
[1734381005034,0.64284056,4057.1,4055.7,1.17660721]
[1734381005261,0.18366718,4057.0,4055.8,1.78904217]
[1734381005433,2.72229587,4058.1,4056.0,1.02935262]
[1734381005637,0.64271874,4058.0,4056.1,1.17637461]
[1734381005964,0.64271874,4057.9,4056.2,1.51135415]
[1734381006126,2.72229587,4058.1,4056.3,1.17637461]
[1734381006127,0.12575975,4057.4,4056.3,1.17637461]
[1734381006317,2.72229587,4058.1,4056.4,0.56151505]
[1734381006522,0.41317629,4058.0,4056.4,0.56151505]
[1734381006773,0.41317629,4057.9,4056.4,0.56151505]
[1734381006930,0.18363456,4057.8,4056.4,0.56151505]
[1734381007137,2.72229587,4058.1,4056.5,0.16155138]
[1734381008278,2.72229587,4057.7,4056.1,1.02935262]
[1734381008440,2.72229587,4057.7,4056.2,1.17627296]
[1734381008644,2.72229587,4057.7,4056.0,1.02935262]
[1734381008961,0.18350281,4057.6,4056.0,1.02935262]
[1734381009128,0.18350281,4057.6,4056.1,1.13033779]
[1734381009466,0.41289573,4057.5,4056.1,1.13033779]
[1734381009669,0.18350281,4057.4,4056.1,1.13033779]
[1734381009828,0.18350281,4057.3,4056.1,1.13033779]
[1734381010029,0.18350281,4057.2,4056.2,0.98264217]
[1734381010239,2.72229587,4057.7,4056.2,0.98264217]
[1734381010568,0.12130394,4057.5,4056.2,0.98264217]
[1734381010774,0.18353098,4057.4,4056.2,0.98264217]
[1734381010945,0.18353098,4057.3,4056.2,0.98264217]
[1734381011145,0.12130394,4057.5,4056.3,0.97126386]
[1734381011451,0.1835308,4057.4,4056.3,0.97126386]
[1734381011649,0.12130394,4057.5,4056.3,0.97126386]
[1734381011650,0.1835308,4057.3,4056.3,0.97126386]
[1734381011857,0.12130394,4057.5,4056.3,0.97126386]
[1734381012069,0.1835179,4057.4,4056.4,0.97012603]
[1734381012362,0.1835179,4057.3,4056.1,8.7299964]
[1734381012577,0.18350138,4057.2,4056.1,8.7299964]
[1734381012726,0.18350138,4057.1,4056.1,8.7299964]
[1734381012927,0.18348925,4057.0,4056.1,8.7299964]
[1734381013175,2.72229587,4057.3,4056.1,8.7299964]
[1734381013327,0.46783168,4057.2,4056.1,8.7299964]
[1734381013529,0.1834717,4057.1,4056.1,8.7299964]
[1734381013722,0.1834717,4057.0,4056.1,8.7299964]
[1734381014031,0.28435998,4057.2,4056.1,8.7299964]
[1734381014231,0.48414152,4057.1,4056.1,8.7299964]
[1734381014432,0.18347572,4057.0,4056.1,8.7299964]
[1734381014962,0.18347572,4056.9,4056.1,8.7299964]
[1734381015146,0.30066559,4057.1,4056.1,8.7299964]
[1734381015353,0.18346759,4057.0,4055.4,1.02935262]
[1734381015669,0.18346759,4056.9,4055.5,1.50007142]
[1734381015849,2.72229587,4057.7,4055.6,1.52863808]
[1734381016041,2.46409,4058.3,4055.6,1.52863808]
[1734381016042,1.0297467,4057.9,4055.8,3.0]
[1734381016277,0.18353733,4057.4,4056.1,2.72229587]
[1734381016423,0.18353733,4057.4,4056.2,1.73801141]
[1734381016629,0.29367743,4058.0,4056.3,1.17635375]
[1734381016932,0.18358756,4057.4,4056.2,0.56152611]
[1734381017132,0.29367743,4057.8,4056.0,1.02935262]
[1734381017497,0.18358296,4057.4,4056.1,1.51138004]
[1734381017644,0.18358296,4057.3,4056.1,0.35962621]
[1734381017978,0.2937327,4057.9,4056.2,1.176387]
[1734381018184,0.1835969,4057.4,4056.2,0.33497954]
[1734381018387,0.29388079,4058.0,4056.3,0.1716479]
[1734381018538,0.18369409,4057.4,4056.3,0.1716479]
[1734381018741,0.29388079,4057.8,4056.3,0.1716479]
[1734381018963,0.18371166,4057.4,4056.3,0.1716479]
[1734381019169,0.18371166,4057.3,4056.3,0.1716479]
[1734381019475,2.72616999,4058.1,4056.3,0.1716479]
[1734381019476,0.29388079,4057.8,4056.3,0.1716479]
[1734381019774,0.18372414,4057.4,4056.4,0.99309969]
[1734381019985,0.29388079,4057.9,4056.4,0.99309969]
[1734381020140,0.18372531,4057.4,4056.4,0.99309969]
[1734381020336,0.18374192,4057.3,4056.4,0.99309969]
[1734381020585,0.29388079,4058.0,4056.4,0.99309969]
[1734381020787,0.18376742,4057.4,4056.4,0.99309969]
[1734381020987,0.18376742,4057.3,4056.5,0.62464625]
[1734381021278,0.29388079,4057.7,4056.6,0.35962626]
[1734381021489,0.18379974,4057.4,4056.6,0.33497954]
[1734381021643,0.29388079,4058.1,4056.6,9.06497594]
[1734381021843,0.70742832,4058.0,4056.6,9.05358252]
[1734381022048,0.70742832,4057.9,4056.6,9.05358252]
[1734381022251,0.70742832,4057.8,4056.6,9.05358252]
[1734381022456,0.70742832,4057.7,4056.6,9.05358252]
[1734381022694,0.1837989,4057.6,4056.6,8.7299964]
[1734381022859,0.1837989,4057.5,4056.6,8.7299964]
[1734381023067,0.1837989,4057.4,4056.6,8.7299964]
[1734381023289,0.1837989,4057.3,4056.1,8.7299964]
[1734381023579,0.1837989,4057.2,4056.2,1.0546049]
[1734381023788,2.72616999,4058.1,4056.1,8.7299964]
[1734381023789,0.29388079,4057.6,4056.1,8.7299964]
[1734381023986,0.70746758,4057.5,4056.1,8.7299964]
[1734381024287,0.18381502,4057.4,4056.1,8.7299964]
[1734381024788,0.41364976,4057.3,4056.1,8.7299964]
[1734381024947,0.41364976,4057.2,4056.1,8.7299964]
[1734381025270,0.66192121,4057.8,4056.2,1.0546049]
[1734381025472,1.07579388,4057.7,4056.2,1.0546049]
[1734381025644,1.07579388,4057.6,4056.2,1.0546049]
[1734381025981,1.07579388,4057.5,4056.2,1.0546049]
[1734381026187,1.07579388,4057.4,4056.2,1.0546049]
[1734381026382,0.70805829,4057.3,4056.3,0.97846013]
[1734381026683,0.41387267,4057.2,4056.3,0.97846013]
[1734381026881,0.41412274,4057.1,4056.3,1.64093976]
[1734381027081,4.0297467,4058.4,4056.3,1.64093976]
[1734381027082,0.66255727,4057.7,4056.3,1.64093976]
[1734381027394,1.19791181,4057.6,4056.4,1.38924042]
[1734381027547,0.70863027,4057.5,4056.5,10.68885662]
[1734381027748,0.66276343,4058.1,4056.6,2.86809247]
[1734381027942,1.07707641,4058.0,4056.7,2.25214656]
[1734381028183,1.07707641,4058.0,4056.8,1.17626022]
[1734381028354,0.70893093,4057.9,4056.7,1.07588634]
[1734381028559,0.41431298,4057.8,4056.8,1.17619316]
[1734381028753,0.24490066,4058.6,4056.9,3.02464291]
[1734381028754,0.41431298,4057.7,4056.9,3.02464291]
[1734381028984,0.66295616,4058.5,4057.1,8.7299964]
[1734381029301,1.0297467,4059.2,4057.2,0.83944029]
[1734381029302,1.07729289,4058.4,4057.2,0.83944029]
[1734381029456,1.07729289,4058.3,4057.2,1.50191992]
[1734381029672,0.41433673,4058.2,4057.3,1.17210541]
[1734381029875,0.18415075,4058.1,4057.5,8.7299964]
[1734381030208,3.75591669,4059.4,4057.6,3.0]
[1734381030209,0.6627897,4058.8,4057.6,3.0]
[1734381030408,0.4139395,4058.7,4057.7,8.7299964]
[1734381030607,0.4139395,4058.6,4057.7,8.7299964]
[1734381030759,0.4139395,4058.5,4057.7,8.7299964]
[1734381030959,0.18397311,4058.4,4057.7,10.0059313]
[1734381031307,0.66230297,4058.9,4057.7,10.0059313]
[1734381031607,0.70812296,4058.8,4057.7,10.0059313]
[1734381031769,0.41376622,4058.7,4057.7,10.0059313]
[1734381031968,0.41376622,4058.6,4057.7,10.0059313]
[1734381032196,0.18389602,4058.5,4057.7,10.0059313]
[1734381032509,0.66205502,4059.2,4057.8,3.83704506]
[1734381032716,0.41356704,4059.1,4057.9,0.7584]
[1734381033008,0.41356704,4059.0,4058.0,10.58899911]
[1734381033180,0.18380798,4058.9,4058.0,9.39247603]
[1734381033382,0.18372641,4058.8,4058.1,1.2759349]
[1734381033697,1.54462005,4060.0,4058.1,1.2759349]
[1734381033698,0.66205502,4059.5,4058.1,8.7299964]
[1734381034024,1.27504399,4059.9,4058.1,8.7299964]
[1734381034025,0.7074748,4059.4,4058.1,8.7299964]
[1734381034172,0.7074748,4059.3,4058.1,8.7299964]
[1734381034379,0.41336601,4059.2,4058.1,8.7299964]
[1734381034620,0.183719,4059.1,4058.2,1.0150876]
[1734381034773,0.41329503,4059.1,4058.2,1.0150876]
[1734381035124,1.0297467,4060.0,4058.2,1.70220304]
[1734381035428,0.84474846,4059.9,4058.3,0.33497954]
[1734381035601,0.12286629,4059.4,4058.3,1.3757359]
[1734381035802,0.41305761,4059.3,4058.3,1.04075636]
[1734381036098,0.18358085,4059.2,4058.3,1.04075636]
[1734381036298,0.12286629,4059.4,4058.3,1.04075636]
[1734381036622,0.4129085,4059.3,4058.3,1.04075636]
[1734381036823,0.18351537,4059.2,4058.3,1.04075636]
[1734381037008,0.12286629,4059.4,4058.3,1.04075636]
[1734381037204,0.4129126,4059.3,4058.3,1.04075636]
[1734381037408,0.18351671,4059.2,4058.3,1.04075636]
[1734381037613,0.12286629,4059.4,4058.4,0.97707528]
[1734381037917,0.18347396,4059.3,4058.4,0.97707528]
[1734381038355,0.29348028,4059.9,4058.4,10.04205122]
[1734381038622,0.41271307,4059.8,4058.4,9.70707168]
[1734381038773,0.53833241,4059.7,4058.4,9.70707168]
[1734381038973,0.41271307,4059.6,4058.4,9.70707168]
[1734381039310,0.41271307,4059.5,4058.4,9.70707168]
[1734381039511,0.55,4060.0,4058.4,9.70707168]
[1734381039818,0.41260374,4059.9,4058.4,9.70707168]
[1734381040121,0.55,4060.0,4058.4,9.70707168]
[1734381040122,0.54490525,4059.8,4058.5,0.97070717]
[1734381040326,0.41260374,4059.7,4058.5,0.97070717]
[1734381040632,0.41260374,4059.6,4058.5,0.97070717]
[1734381040779,0.18337944,4059.5,4058.5,0.97070717]
[1734381040982,0.13230151,4059.8,4058.4,8.7299964]
[1734381041190,0.41251593,4059.7,4058.4,8.7299964]
[1734381041389,0.41248487,4059.6,4058.4,8.7299964]
[1734381041589,0.18330935,4059.5,4058.4,8.7299964]
[1734381041819,0.13230151,4059.8,4058.4,8.7299964]
[1734381041979,0.41244624,4059.7,4058.4,8.7299964]
[1734381042323,0.41244624,4059.6,4058.1,3.0]
[1734381042524,0.41244624,4059.5,4058.1,4.28233759]
[1734381042825,0.41244624,4059.4,4058.1,4.28233759]
[1734381043131,0.55,4059.2,4058.0,8.7299964]
[1734381043433,0.41248608,4059.1,4058.0,8.7299964]
[1734381043728,0.41249373,4059.0,4057.5,8.7299964]
[1734381043883,0.18330944,4058.9,4057.5,8.7299964]
[1734381044081,0.41249853,4058.8,4057.5,8.7299964]
[1734381044321,0.18330944,4058.7,4057.5,8.7299964]
[1734381044478,0.29343343,4059.2,4057.5,9.669244]
[1734381044819,0.96263957,4059.1,4057.5,9.669244]
[1734381045023,0.41263957,4059.0,4057.5,9.669244]
[1734381045175,0.41263957,4058.9,4057.5,9.669244]
[1734381045378,0.41263957,4058.8,4057.5,9.669244]
[1734381045574,0.69455537,4058.7,4057.5,9.669244]
[1734381045822,0.41263957,4058.6,4057.5,0.9392476]
[1734381046025,0.18339491,4058.5,4057.5,0.9392476]
[1734381046189,0.29343343,4059.0,4057.3,8.7299964]
[1734381046399,0.41284045,4058.9,4057.3,8.7299964]
[1734381046707,0.41284045,4058.8,4057.3,8.7299964]
[1734381047023,0.41284045,4058.7,4057.4,0.33497954]
[1734381047179,0.84343343,4059.1,4057.4,0.33497954]
[1734381047180,0.41284045,4058.6,4057.5,0.9392476]
[1734381047522,0.18348464,4058.5,4057.4,0.33497954]
[1734381047690,0.55,4058.8,4057.3,8.7299964]